lending/lending_fUSD_20240512
["ID","MTS","AMOUNT","RATE_DAILY","PERIOD"]
[326861768,1715521841504,-2861.13,0.00012498,2]
[326861769,1715521841513,-2861.13,0.00012498,2]
[326861770,1715521841523,-2861.13,0.00012498,2]
[326861771,1715521841534,-552.52642064,0.00012498,2]
[326861772,1715521841544,-500.0,0.00012498,2]
[326861773,1715521841554,-545.45,0.00012498,2]
[326861774,1715521841564,-545.45,0.00012498,2]
[326861775,1715521841573,-532.49038311,0.00012498,2]
[326861776,1715521841582,-1333.99,0.00012498,2]
[326861777,1715521841592,-1333.99,0.00012498,2]
[326861778,1715521841602,-500.0,0.00012498,2]
[326861779,1715521841612,-1333.99,0.00012498,2]
[326861780,1715521841621,-500.0,0.00012498,2]
[326861781,1715521841631,-500.0,0.00012498,2]
[326861782,1715521841640,-898.88,0.00012498,2]
[326861783,1715521841649,-898.88,0.00012498,2]
[326861784,1715521841658,-509.72627557,0.00012498,2]
[326861785,1715521841668,-4797.92,0.00012498,2]
[326861786,1715521841678,-306.46786738,0.00012498,2]
[326861787,1715521841688,-1128.77,0.00012498,2]
[326861788,1715521841698,-1128.77,0.00012498,2]
[326861789,1715521841707,-648.47,0.00012498,2]
[326861790,1715521841717,-648.47,0.00012498,2]
[326861791,1715521841727,-648.47,0.00012498,2]
[326861792,1715521841737,-2457.65,0.00012498,2]
[326861793,1715521841747,-934.48661636,0.00012498,2]
[326861794,1715521842355,-1523.16338364,0.00012498,2]
[326861795,1715521842365,-2457.65,0.00012498,2]
[326861797,1715521842374,-500.0,0.00012498,2]
[326861798,1715521842384,-500.0,0.00012498,2]
[326861799,1715521842393,-500.0,0.00012498,2]
[326861800,1715521842403,-3449.59,0.00012498,2]
[326861801,1715521842413,-552.74,0.00012498,2]
[326861802,1715521842422,-552.74,0.00012498,2]
[326861803,1715521842432,-552.74,0.00012498,2]
[326861804,1715521842442,-2481.71,0.00012498,2]
[326861805,1715521842451,-2481.71,0.00012498,2]
[326861806,1715521842461,-2481.71,0.00012498,2]
[326861807,1715521842470,-500.0,0.00012498,2]
[326861808,1715521842479,-500.0,0.00012498,2]
[326861809,1715521842489,-500.0,0.00012498,2]
[326861810,1715521842499,-500.0,0.00012498,2]
[326861811,1715521842508,-500.0,0.00012498,2]
[326861812,1715521842518,-500.0,0.00012498,2]
[326861813,1715521842527,-500.0,0.00012498,2]
[326861814,1715521842537,-500.0,0.00012498,2]
[326861815,1715521842547,-563.7,0.00012498,2]
[326861816,1715521842557,-1225.08,0.00012498,2]
[326861817,1715521842566,-500.0,0.00012498,2]
[326861818,1715521842576,-642.03,0.00012498,2]
[326861819,1715521842585,-642.03,0.00012498,2]
[326861821,1715521842595,-500.0,0.00012498,2]
[326861823,1715521842604,-500.0,0.00012498,2]
[326861824,1715521842614,-500.0,0.00012498,2]
[326861825,1715521842624,-500.0,0.00012498,2]
[326861826,1715521842634,-500.0,0.00012498,2]
[326861827,1715521842644,-500.0,0.00012498,2]
[326861828,1715521842653,-500.0,0.00012498,2]
[326861829,1715521842663,-500.0,0.00012498,2]
[326861831,1715521842672,-500.0,0.00012498,2]
[326861833,1715521842682,-500.0,0.00012498,2]
[326861835,1715521842691,-500.0,0.00012498,2]
[326861837,1715521842700,-500.0,0.00012498,2]
[326861839,1715521842710,-1217.39,0.00012498,2]
[326861841,1715521842719,-1217.39,0.00012498,2]
[326861842,1715521842728,-1623.01,0.00012498,2]
[326861844,1715521842738,-528.06,0.00012498,2]
[326861846,1715521842747,-528.06,0.00012498,2]
[326861847,1715521842757,-1376.19,0.00012498,2]
[326861848,1715521842768,-1376.19,0.00012498,2]
[326861849,1715521842777,-1376.19,0.00012498,2]
[326861851,1715521842788,-1859.6,0.00012498,2]
[326861852,1715521842797,-591.91,0.00012498,2]
[326861853,1715521842807,-591.91,0.00012498,2]
[326861854,1715521842816,-2302.83,0.00012498,2]
[326861855,1715521842825,-2302.83,0.00012498,2]
[326861856,1715521842835,-2302.83,0.00012498,2]
[326861857,1715521842845,-500.0,0.00012498,2]
[326861858,1715521842854,-500.0,0.00012498,2]
[326861859,1715521842864,-500.0,0.00012498,2]
[326861860,1715521842873,-1173.07,0.00012498,2]
[326861861,1715521842883,-500.0,0.00012498,2]
[326861862,1715521842892,-5171.72,0.00012498,2]
[326861863,1715521842902,-500.0,0.00012498,2]
[326861864,1715521842911,-509.06549948,0.00012498,2]
[326861865,1715521842920,-500.0,0.00012498,2]
[326861866,1715521842930,-500.0,0.00012498,2]
[326861867,1715521842939,-500.0,0.00012498,2]
[326861868,1715521842949,-500.0,0.00012498,2]
[326861869,1715521842959,-500.0,0.00012498,2]
[326861870,1715521842969,-5248.41,0.00012498,2]
[326861871,1715521842978,-500.0,0.00012498,2]
[326861872,1715521842988,-500.0,0.00012498,2]
[326861873,1715521842997,-1300.41,0.00012498,2]
[326861874,1715521843007,-1300.41,0.00012498,2]
[326861875,1715521843016,-500.0,0.00012498,2]
[326861876,1715521843026,-500.0,0.00012498,2]
[326861877,1715521843036,-500.0,0.00012498,2]
[326861878,1715521843045,-500.0,0.00012498,2]
[326861879,1715521843055,-500.0,0.00012498,2]
[326861880,1715521843064,-501.3748821,0.00012498,2]
[326861881,1715521843074,-1284.24,0.00012498,2]
[326861882,1715521843084,-760.67,0.00012498,2]
[326861883,1715521843094,-760.67,0.00012498,2]
[326861884,1715521843104,-760.67,0.00012498,2]
[326861885,1715521843114,-1552.0,0.00012498,2]
[326861886,1715521843124,-1552.0,0.00012498,2]
[326861887,1715521843133,-1552.0,0.00012498,2]
[326861888,1715521843143,-1913.71,0.00012498,2]
[326861889,1715521843153,-1913.71,0.00012498,2]
[326861890,1715521843162,-1913.71,0.00012498,2]
[326861891,1715521843171,-1261.77,0.00012498,2]
[326861892,1715521843180,-1261.77,0.00012498,2]
[326861893,1715521843189,-1811.99,0.00012498,2]
[326861894,1715521843199,-500.0,0.00012498,2]
[326861895,1715521843209,-3570.8,0.00012498,2]
[326861896,1715521843218,-519.23544495,0.00012498,2]
[326861897,1715521843227,-500.0,0.00012498,2]
[326861898,1715521843236,-500.0,0.00012498,2]
[326861899,1715521843246,-1151.21,0.00012498,2]
[326861900,1715521843255,-1151.21,0.00012498,2]
[326861901,1715521843264,-654.44,0.00012498,2]
[326861902,1715521843278,-654.44,0.00012498,2]
[326861903,1715521843288,-654.44,0.00012498,2]
[326861904,1715521843298,-1314.89,0.00012498,2]
[326861905,1715521843307,-500.0,0.00012498,2]
[326861906,1715521843316,-1314.89,0.00012498,2]
[326861907,1715521843325,-527.09802917,0.00012498,2]
[326861908,1715521843334,-1314.89,0.00012498,2]
[326861909,1715521843343,-500.0,0.00012498,2]
[326861910,1715521843355,-1016.33,0.00012498,2]
[326861911,1715521843365,-1016.33,0.00012498,2]
[326861912,1715521843375,-1016.33,0.00012498,2]
[326861913,1715521843384,-2662.66,0.00012498,2]
[326861914,1715521843393,-551.87,0.00012498,2]
[326861915,1715521843402,-551.87,0.00012498,2]
[326861917,1715521843411,-1226.43,0.00012498,2]
[326861919,1715521843420,-1100.22,0.00012498,2]
[326861921,1715521843429,-1226.43,0.00012498,2]
[326861923,1715521843438,-1226.43,0.00012498,2]
[326861925,1715521843447,-905.5,0.00012498,2]
[326861926,1715521843456,-905.5,0.00012498,2]
[326861927,1715521843465,-4596.26,0.00012498,2]
[326861928,1715521843474,-4596.26,0.00012498,2]
[326861929,1715521843483,-4596.26,0.00012498,2]
[326861930,1715521843493,-1295.15,0.00012498,2]
[326861931,1715521843502,-1295.15,0.00012498,2]
[326861932,1715521843510,-1295.15,0.00012498,2]
[326861933,1715521843520,-5555.05,0.00012498,2]
[326861934,1715521843530,-500.0,0.00012498,2]
[326861935,1715521843541,-633.66,0.00012498,2]
[326861936,1715521843550,-500.0,0.00012498,2]
[326861937,1715521843559,-633.66,0.00012498,2]
[326861938,1715521843569,-529.59924212,0.00012498,2]
[326861939,1715521843578,-2876.13,0.00012498,2]
[326861940,1715521843587,-6200.05,0.00012498,2]
[326861941,1715521843596,-1008.36,0.00012498,2]
[326861942,1715521843605,-6200.05,0.00012498,2]
[326861943,1715521843614,-1008.36,0.00012498,2]
[326861944,1715521843623,-1008.36,0.00012498,2]
[326861945,1715521843632,-2186.99,0.00012498,2]
[326861946,1715521843641,-6200.05,0.00012498,2]
[326861947,1715521843650,-500.0,0.00012498,2]
[326861948,1715521843659,-2186.99,0.00012498,2]
[326861949,1715521843669,-2186.99,0.00012498,2]
[326861950,1715521843679,-500.0,0.00012498,2]
[326861951,1715521843689,-500.0,0.00012498,2]
[326861952,1715521843698,-922.29,0.00012498,2]
[326861953,1715521843707,-1904.26,0.00012498,2]
[326861954,1715521843717,-1904.26,0.00012498,2]
[326861955,1715521843726,-1904.26,0.00012498,2]
[326861956,1715521843735,-500.0,0.00012498,2]
[326861957,1715521843744,-500.0,0.00012498,2]
[326861958,1715521843753,-500.0,0.00012498,2]
[326861959,1715521843762,-500.0,0.00012498,2]
[326861960,1715521843771,-500.0,0.00012498,2]
[326861961,1715521843780,-2940.27,0.00012498,2]
[326861962,1715521843792,-500.0,0.00012498,2]
[326861963,1715521843801,-500.0,0.00012498,2]
[326861964,1715521843810,-369.51287521,0.00012498,2]
[326861965,1715521843820,-500.0,0.00012498,2]
[326861966,1715521843829,-2426.29,0.00012498,2]
[326861967,1715521843838,-2426.29,0.00012498,2]
[326861968,1715521843848,-2863.17,0.00012498,2]
[326861969,1715521843857,-26887.22,0.00012498,2]
[326861970,1715521843867,-2426.29,0.00012498,2]
[326861971,1715521843876,-2863.17,0.00012498,2]
[326861972,1715521843885,-2863.17,0.00012498,2]
[326861973,1715521843894,-500.0,0.00012498,2]
[326861974,1715521843903,-500.0,0.00012498,2]
[326861975,1715521843912,-543.37275842,0.00012498,2]
[326861976,1715521843922,-1693.4,0.00012498,2]
[326861977,1715521843931,-1693.4,0.00012498,2]
[326861978,1715521843940,-1693.4,0.00012498,2]
[326861979,1715521843949,-500.0,0.00012498,2]
[326861980,1715521843958,-500.0,0.00012498,2]
[326861981,1715521843967,-500.0,0.00012498,2]
[326861982,1715521843976,-876.34,0.00012498,2]
[326861983,1715521843985,-500.0,0.00012498,2]
[326861984,1715521843994,-500.0,0.00012498,2]
[326861985,1715521844003,-522.49430468,0.00012498,2]
[326861986,1715521844012,-3238.78,0.00012498,2]
[326861987,1715521844022,-526.40263207,0.00012498,2]
[326861988,1715521844031,-4389.68,0.00012498,2]
[326861989,1715521844042,-4389.68,0.00012498,2]
[326861990,1715521844051,-4389.68,0.00012498,2]
[326861991,1715521844060,-524.0,0.00012498,2]
[326861992,1715521844069,-524.0,0.00012498,2]
[326861993,1715521844078,-7245.51,0.00012498,2]
[326861994,1715521844087,-500.0,0.00012498,2]
[326861995,1715521844355,-7245.51,0.00012498,2]
[326861996,1715521844365,-500.0,0.00012498,2]
[326861997,1715521844374,-7245.51,0.00012498,2]
[326861998,1715521844384,-682.47,0.00012498,2]
[326861999,1715521844393,-682.47,0.00012498,2]
[326862000,1715521844402,-1406.07,0.00012498,2]
[326862001,1715521844411,-1773.33,0.00012498,2]
[326862002,1715521844421,-1773.33,0.00012498,2]
[326862003,1715521844430,-531.16050248,0.00012498,2]
[326862004,1715521844439,-1773.33,0.00012498,2]
[326862005,1715521844449,-500.0,0.00012498,2]
[326862006,1715521844458,-8645.64,0.00012498,2]
[326862007,1715521844467,-8645.64,0.00012498,2]
[326862008,1715521844477,-8645.64,0.00012498,2]
[326862009,1715521844486,-618.61,0.00012498,2]
[326862010,1715521844496,-618.61,0.00012498,2]
[326862011,1715521844505,-14586.23,0.00012498,2]
[326862012,1715521844515,-500.0,0.00012498,2]
[326862013,1715521844524,-500.0,0.00012498,2]
[326862014,1715521844534,-500.0,0.00012498,2]
[326862015,1715521844546,-515.12197012,0.00012498,2]
[326862016,1715521844555,-500.0,0.00012498,2]
[326862017,1715521844564,-500.0,0.00012498,2]
[326862018,1715521844574,-500.0,0.00012498,2]
[326862019,1715521844583,-700.59,0.00012498,2]
[326862020,1715521844593,-500.0,0.00012498,2]
[326862021,1715521844603,-500.0,0.00012498,2]
[326862022,1715521844612,-500.0,0.00012498,2]
[326862023,1715521844622,-500.0,0.00012498,2]
[326862024,1715521844631,-704.83,0.00012498,2]
[326862025,1715521844641,-704.83,0.00012498,2]
[326862026,1715521844650,-9004.83,0.00012498,2]
[326862027,1715521844659,-524.09521067,0.00012498,2]
[326862028,1715521844668,-9004.83,0.00012498,2]
[326862029,1715521844677,-9004.83,0.00012498,2]
[326862030,1715521844686,-500.0,0.00012498,2]
[326862031,1715521844695,-500.0,0.00012498,2]
[326862032,1715521844704,-1339.19,0.00012498,2]
[326862033,1715521844713,-500.0,0.00012498,2]
[326862034,1715521844723,-534.26312581,0.00012498,2]
[326862035,1715521844732,-500.0,0.00012498,2]
[326862036,1715521844741,-500.0,0.00012498,2]
[326862037,1715521844750,-500.0,0.00012498,2]
[326862038,1715521844759,-993.61,0.00012498,2]
[326862039,1715521844768,-500.0,0.00012498,2]
[326862040,1715521844778,-500.0,0.00012498,2]
[326862041,1715521844789,-41219.99,0.00012498,2]
[326862042,1715521844798,-41219.99,0.00012498,2]
[326862043,1715521844807,-41219.99,0.00012498,2]
[326862044,1715521844816,-685.92,0.00012498,2]
[326862045,1715521844826,-1296.18,0.00012498,2]
[326862046,1715521844835,-685.92,0.00012498,2]
[326862047,1715521844844,-735.23,0.00012498,2]
[326862048,1715521844853,-735.23,0.00012498,2]
[326862049,1715521844863,-500.0,0.00012498,2]
[326862050,1715521844872,-735.23,0.00012498,2]
[326862051,1715521844881,-2197.05,0.00012498,2]
[326862052,1715521844890,-2197.05,0.00012498,2]
[326862053,1715521844899,-1614.73,0.00012498,2]
[326862054,1715521844908,-1614.73,0.00012498,2]
[326862055,1715521844917,-2197.05,0.00012498,2]
[326862056,1715521844926,-508.95,0.00012498,2]
[326862057,1715521844935,-508.95,0.00012498,2]
[326862058,1715521844945,-508.95,0.00012498,2]
[326862059,1715521844954,-500.0,0.00012498,2]
[326862060,1715521844963,-500.0,0.00012498,2]
[326862061,1715521844972,-1377.96,0.00012498,2]
[326862062,1715521844981,-500.0,0.00012498,2]
[326862063,1715521844990,-912.04,0.00012498,2]
[326862064,1715521845000,-601.61,0.00012498,2]
[326862065,1715521845009,-601.61,0.00012498,2]
[326862066,1715521845018,-1870.13,0.00012498,2]
[326862067,1715521845028,-25323.26,0.00012498,2]
[326862068,1715521845037,-25323.26,0.00012498,2]
[326862069,1715521845046,-25323.26,0.00012498,2]
[326862070,1715521845055,-8342.08,0.00012498,2]
[326862071,1715521845064,-8342.08,0.00012498,2]
[326862072,1715521845074,-904.81,0.00012498,2]
[326862073,1715521845084,-8342.08,0.00012498,2]
[326862074,1715521845094,-904.81,0.00012498,2]
[326862075,1715521845103,-904.81,0.00012498,2]
[326862076,1715521845112,-500.0,0.00012498,2]
[326862077,1715521845121,-500.0,0.00012498,2]
[326862078,1715521845130,-2209.92,0.00012499,2]
[326862079,1715521845140,-2209.92,0.00012499,2]
[326862080,1715521845150,-2209.92,0.00012499,2]
[326862081,1715521845159,-3557.79,0.00012499,2]
[326862082,1715521845168,-3557.79,0.00012499,2]
[326862083,1715521845177,-3557.79,0.00012499,2]
[326862084,1715521845188,-500.0,0.00012499,2]
[326862085,1715521845198,-500.0,0.00012499,2]
[326862086,1715521845208,-500.0,0.00012499,2]
[326862087,1715521845216,-8816.12,0.00012499,2]
[326862088,1715521845226,-8816.12,0.00012499,2]
[326862089,1715521845235,-8816.12,0.00012499,2]
[326862090,1715521845244,-4191.24,0.00012499,2]
[326862091,1715521845253,-4191.24,0.00012499,2]
[326862092,1715521845263,-4191.24,0.00012499,2]
[326862093,1715521845276,-6748.73,0.00012499,2]
[326862094,1715521845287,-6748.73,0.00012499,2]
[326862095,1715521845296,-6748.73,0.00012499,2]
[326862096,1715521845306,-1997.13,0.00012499,2]
[326862097,1715521845316,-1997.13,0.00012499,2]
[326862098,1715521845325,-1997.13,0.00012499,2]
[326862099,1715521845335,-1578.62,0.00012499,2]
[326862100,1715521845345,-1578.62,0.00012499,2]
[326862101,1715521845355,-1578.62,0.00012499,2]
[326862102,1715521845365,-743.8,0.00012499,2]
[326862103,1715521845375,-743.8,0.00012499,2]
[326862104,1715521845384,-743.8,0.00012499,2]
[326862105,1715521845393,-5699.62,0.00012499,2]
[326862106,1715521845402,-5699.62,0.00012499,2]
[326862107,1715521845411,-5699.62,0.00012499,2]
[326862108,1715521845420,-3726.01,0.00012499,2]
[326862109,1715521845430,-3726.01,0.00012499,2]
[326862110,1715521845439,-3726.01,0.00012499,2]
[326862111,1715521845448,-1521.99,0.00012499,2]
[326862112,1715521845458,-1521.99,0.00012499,2]
[326862114,1715521845467,-1521.99,0.00012499,2]
[326862116,1715521845477,-2864.46,0.00012499,2]
[326862118,1715521845486,-2864.46,0.00012499,2]
[326862120,1715521845496,-2864.46,0.00012499,2]
[326862122,1715521845506,-151.0,0.00012499,2]
[326862124,1715521845515,-151.0,0.00012499,2]
[326862126,1715521845525,-1468.0,0.00012499,2]
[326862128,1715521845534,-1468.0,0.00012499,2]
[326862129,1715521845545,-1468.0,0.00012499,2]
[326862130,1715521845554,-3168.68,0.00012499,2]
[326862131,1715521845563,-3168.68,0.00012499,2]
[326862132,1715521845572,-3168.68,0.00012499,2]
[326862134,1715521845582,-2637.96,0.00012499,2]
[326862136,1715521845591,-2637.96,0.00012499,2]
[326862138,1715521845600,-2637.96,0.00012499,2]
[326862140,1715521845609,-151.0,0.00012499,2]
[326862142,1715521845619,-151.0,0.00012499,2]
[326862144,1715521845628,-1962.94,0.00012499,2]
[326862146,1715521845637,-1962.94,0.00012499,2]
[326862147,1715521845646,-1962.94,0.00012499,2]
[326862149,1715521845655,-152.015425,0.00012499,2]
[326862150,1715521845664,-8705.11,0.00012499,2]
[326862151,1715521845673,-8705.11,0.00012499,2]
[326862152,1715521845683,-8705.11,0.00012499,2]
[326862153,1715521845693,-1208.468122,0.00012499,2]
[326862154,1715521845702,-882.48103342,0.000125,2]
[326862155,1715521845711,-882.48103342,0.00012509,2]
[326862156,1715521845721,-882.48103342,0.00012518,2]
[326862157,1715521845731,-882.48103342,0.00012528,2]
[326862158,1715521845740,-882.48103342,0.00012537,2]
[326862159,1715521845749,-882.48103342,0.00012546,2]
[326862160,1715521845759,-882.48103342,0.00012555,2]
[326862161,1715521845770,-882.48103342,0.00012565,2]
[326862162,1715521845780,-700.59,0.00012571,2]
[326862163,1715521845790,-700.59,0.00012571,2]
[326862164,1715521845799,-700.59,0.00012571,2]
[326862165,1715521845809,-1296.18,0.00012571,2]
[326862166,1715521845818,-1296.18,0.00012571,2]
[326862167,1715521845827,-1296.18,0.00012571,2]
[326862168,1715521845837,-500.0,0.00012571,2]
[326862169,1715521845846,-500.0,0.00012571,2]
[326862170,1715521845854,-912.04,0.00012571,2]
[326862171,1715521845863,-500.0,0.00012571,2]
[326862172,1715521845873,-912.04,0.00012571,2]
[326862173,1715521845882,-912.04,0.00012571,2]
[326862174,1715521845891,-500.0,0.00012571,2]
[326862175,1715521845900,-200.20871114,0.00012572,2]
[326862176,1715521845909,-500.0,0.00012572,2]
[326862177,1715521845918,-500.0,0.00012572,2]
[326862178,1715521845927,-500.0,0.00012572,2]
[326862179,1715521845936,-500.0,0.00012572,2]
[326862180,1715521845945,-500.0,0.00012572,2]
[326862181,1715521845954,-500.0,0.00012572,2]
[326862182,1715521845963,-500.0,0.00012572,2]
[326862183,1715521845972,-500.0,0.00012572,2]
[326862184,1715521845981,-500.0,0.00012572,2]
[326862185,1715521845990,-500.0,0.00012572,2]
[326862186,1715521846000,-500.0,0.00012572,2]
[326862187,1715521846010,-500.0,0.00012572,2]
[326862189,1715521846019,-500.0,0.00012572,2]
[326862190,1715521846031,-500.0,0.00012572,2]
[326862191,1715521846041,-500.0,0.00012572,2]
[326862192,1715521846050,-500.0,0.00012572,2]
[326862193,1715521846059,-500.0,0.00012572,2]
[326862194,1715521846068,-500.0,0.00012572,2]
[326862195,1715521846077,-500.0,0.00012572,2]
[326862196,1715521846086,-500.0,0.00012572,2]
[326862197,1715521846095,-545.94774549,0.00012572,2]
[326862198,1715521846104,-656.31,0.00012572,2]
[326862199,1715521846113,-656.31,0.00012572,2]
[326862200,1715521846122,-656.31,0.00012572,2]
[326862201,1715521846131,-656.31,0.00012572,2]
[326862202,1715521846140,-656.31,0.00012572,2]
[326862203,1715521846149,-656.31,0.00012572,2]
[326862204,1715521846159,-1134.5,0.00012572,2]
[326862205,1715521846168,-1134.5,0.00012572,2]
[326862206,1715521846177,-1134.5,0.00012572,2]
[326862207,1715521846187,-1134.5,0.00012572,2]
[326862208,1715521846196,-1134.5,0.00012572,2]
[326862209,1715521846205,-1134.5,0.00012572,2]
[326862210,1715521846214,-816.52,0.00012572,2]
[326862211,1715521846223,-816.52,0.00012572,2]
[326862212,1715521846232,-816.52,0.00012572,2]
[326862213,1715521846241,-816.52,0.00012572,2]
[326862214,1715521846250,-816.52,0.00012572,2]
[326862215,1715521846259,-816.52,0.00012572,2]
[326862216,1715521846273,-500.0,0.00012572,2]
[326862217,1715521846282,-500.0,0.00012572,2]
[326862218,1715521846295,-500.0,0.00012572,2]
[326862219,1715521846305,-625.03569018,0.00012572,2]
[326862220,1715521846314,-500.0,0.00012572,2]
[326862221,1715521846323,-500.0,0.00012572,2]
[326862222,1715521846332,-500.0,0.00012572,2]
[326862223,1715521846344,-500.0,0.00012572,2]
[326862224,1715521846354,-500.0,0.00012572,2]
[326862225,1715521846363,-500.0,0.00012572,2]
[326862226,1715521846373,-641.63,0.00012572,2]
[326862227,1715521846382,-641.63,0.00012572,2]
[326862228,1715521846391,-641.63,0.00012572,2]
[326862229,1715521846401,-641.63,0.00012572,2]
[326862230,1715521846410,-641.63,0.00012572,2]
[326862231,1715521846419,-641.63,0.00012572,2]
[326862232,1715521846428,-500.0,0.00012572,2]
[326862233,1715521846438,-500.0,0.00012572,2]
[326862234,1715521846447,-205.49343732,0.00012572,2]
[326862235,1715521846457,-500.0,0.00012572,2]
[326862236,1715521846466,-806.56,0.00012572,2]
[326862237,1715521846475,-806.56,0.00012572,2]
[326862238,1715521846485,-500.0,0.00012572,2]
[326862239,1715521846494,-806.56,0.00012572,2]
[326862240,1715521846504,-500.0,0.00012572,2]
[326862241,1715521846513,-806.56,0.00012572,2]
[326862242,1715521846522,-500.0,0.00012572,2]
[326862243,1715521846531,-806.56,0.00012572,2]
[326862244,1715521846542,-500.0,0.00012572,2]
[326862245,1715521846552,-806.56,0.00012572,2]
[326862246,1715521846561,-500.0,0.00012572,2]
[326862247,1715521846571,-500.0,0.00012572,2]
[326862248,1715521846580,-500.0,0.00012572,2]
[326862249,1715521846589,-500.0,0.00012572,2]
[326862250,1715521846598,-500.0,0.00012572,2]
[326862251,1715521846607,-500.0,0.00012572,2]
[326862252,1715521846616,-500.0,0.00012572,2]
[326862253,1715521846625,-733.13,0.00012572,2]
[326862254,1715521846635,-733.13,0.00012572,2]
[326862255,1715521846644,-733.13,0.00012572,2]
[326862256,1715521846653,-733.13,0.00012572,2]
[326862257,1715521846662,-500.0,0.00012572,2]
[326862258,1715521846673,-733.13,0.00012572,2]
[326862259,1715521846682,-368.13120194,0.00012572,2]
[326862260,1715521846691,-733.13,0.00012572,2]
[326862261,1715521846701,-500.0,0.00012572,2]
[326862262,1715521846710,-983.91,0.00012572,2]
[326862263,1715521846719,-500.0,0.00012572,2]
[326862264,1715521846728,-983.91,0.00012572,2]
[326862265,1715521846738,-500.0,0.00012572,2]
[326862266,1715521846747,-983.91,0.00012572,2]
[326862267,1715521846757,-500.0,0.00012572,2]
[326862268,1715521846767,-983.91,0.00012572,2]
[326862269,1715521846776,-500.0,0.00012572,2]
[326862270,1715521846785,-500.0,0.00012572,2]
[326862271,1715521846795,-500.0,0.00012572,2]
[326862272,1715521846804,-983.91,0.00012572,2]
[326862273,1715521846813,-983.91,0.00012572,2]
[326862274,1715521846823,-500.0,0.00012572,2]
[326862275,1715521846832,-500.0,0.00012572,2]
[326862276,1715521846841,-500.0,0.00012572,2]
[326862277,1715521846851,-500.0,0.00012572,2]
[326862278,1715521846860,-500.0,0.00012572,2]
[326862279,1715521846869,-500.0,0.00012572,2]
[326862280,1715521846878,-500.0,0.00012572,2]
[326862281,1715521846887,-500.0,0.00012572,2]
[326862282,1715521846897,-526.86587273,0.00012572,2]
[326862283,1715521846906,-500.0,0.00012572,2]
[326862284,1715521846915,-500.0,0.00012572,2]
[326862285,1715521846924,-500.0,0.00012572,2]
[326862286,1715521846933,-533.40626725,0.00012572,2]
[326862287,1715521846942,-3203.19,0.00012572,2]
[326862288,1715521846951,-3203.19,0.00012572,2]
[326862289,1715521846960,-500.0,0.00012572,2]
[326862290,1715521846969,-3203.19,0.00012572,2]
[326862291,1715521846978,-500.0,0.00012572,2]
[326862292,1715521846988,-3203.19,0.00012572,2]
[326862293,1715521846998,-500.0,0.00012572,2]
[326862294,1715521847007,-3203.19,0.00012572,2]
[326862295,1715521847016,-500.0,0.00012572,2]
[326862296,1715521847026,-3203.19,0.00012572,2]
[326862297,1715521847035,-869.41,0.00012572,2]
[326862298,1715521847046,-500.0,0.00012572,2]
[326862299,1715521847055,-869.41,0.00012572,2]
[326862300,1715521847065,-500.0,0.00012572,2]
[326862301,1715521847074,-869.41,0.00012572,2]